[Event "FIN-ch 2019"]
[Site "Helsinki"]
[Date "2019.06.17"]
[Round "8.3"]
[White "Nyysti, Sampsa"]
[Black "Sipila, Vilka"]
[Result "1-0"]
[ECO "C65"]
[WhiteElo "2320"]
[BlackElo "2410"]
[Annotator "NA"]
[PlyCount "113"]
[EventDate "2019.06.10"]
[EventType "swiss"]
[EventCountry "FIN"]
[SourceTitle "playchess.com"]
[Source "ChessBase"]
[SourceQuality "1"]
[TimeControl "40/5400+30:1800+30"]

1. e4 {[%emt 0:00:00]} e5 {[%emt 0:03:50]} 2. Nf3 {[%emt 0:00:00]} Nc6 {[%emt 0:00:08]} 3. Bb5 {[%emt 0:00:00]} Nf6 {[%emt 0:00:10]} 4. d3 {[%emt 0:00:00]} Bc5 {[%emt 0:00:09]} 5. Bxc6 {[%emt 0:00:12]} dxc6 {[%emt 0:00:07]} 6. Nbd2 {[%emt 0:00:22]} O-O {[%emt 0:00:19]} 7. Nc4 {[%emt 0:05:29]} Nd7 {[%emt 0:00:22]} 8. Qe2 {[%emt 0:01:34]} f6 {[%emt 0:00:49]} 9. Nh4 {[%emt 0:09:18]} a5 {[%emt 0:11:28]} 10. Be3 {[%emt 0:12:15]} b5 {[%emt 0:02:49]} 11. Nd2 {[%emt 0:01:19]} a4 {[%emt 0:02:40]} 12. a3 {[%emt 0:03:04]} g6 {[%emt 0:03:56]} 13. O-O {[%emt 0:12:29]} Bd6 {[%emt 0:18:05]} 14. g3 {[%emt 0:07:29]} Nc5 {[%emt 0:02:20]} 15. Kh1 {[%emt 0:07:57]} f5 {[%emt 0:11:37]} 16. exf5 {[%emt 0:01:44]} gxf5 {[%emt 0:05:55]} 17. f4 {[%emt 0:02:04]} exf4 {[%emt 0:01:10]} 18. Bxf4 {[%emt 0:02:01]} Be7 {[%emt 0:01:46]} 19. Ndf3 {[%emt 0:05:43]} Ne6 {[%emt 0:02:23]} 20. Be5 {[%emt 0:00:24]} c5 {[%emt 0:07:58]} 21. Rae1 {[%emt 0:02:42]} Ra6 {[%emt 0:00:37]} 22. Ng2 {[%emt 0:07:52]} Bb7 {[%emt 0:00:45]} 23. h3 {[%emt 0:01:34]} Bf6 {[%emt 0:07:25]} 24. Kh2 {[%emt 0:01:16]} Ng7 {[%emt 0:03:08]} 25. Qe3 {[%emt 0:02:22]} Bxe5 {[%emt 0:03:09]} 26. Qxe5 {[%emt 0:01:05]} Qd6 {[%emt 0:02:17]} 27. Qxd6 {[%emt 0:04:14]} cxd6 {[%emt 0:00:35]} 28. Nfh4 {[%emt 0:00:58]} Raa8 {[%emt 0:03:15]} 29. Re7 {[%emt 0:01:56]} Rf7 {[%emt 0:03:38]} 30. Rxf7 {[%emt 0:01:11]} Kxf7 {[%emt 0:00:02]} 31. Nxf5 {[%emt 0:00:09]} Nxf5 {[%emt 0:00:03]} 32. Rxf5+ {[%emt 0:00:06]} Kg7 {[%emt 0:01:06]} 33. Nf4 {[%emt 0:03:30]} Bc8 {[%emt 0:01:28]} 34. Rd5 {[%emt 0:00:29]} Ra6 {[%emt 0:00:07]} 35. g4 {[%emt 0:00:28]} h6 {[%emt 0:00:31]} 36. g5 {[%emt 0:01:40]} b4 {[%emt 0:00:48]} 37. h4 {[%emt 0:00:48]} bxa3 {[%emt 0:00:44]} 38. bxa3 {[%emt 0:00:03]} Rb6 {[%emt 0:00:22]} 39. Kg3 {[%emt 0:00:22]} Bd7 {[%emt 0:00:52]} 40. gxh6+ {[%emt 0:02:33]} Kxh6 {[%emt 0:00:02]} 41. Rg5 {[%emt 0:02:37]} c4 {[%emt 0:06:05]} 42. dxc4 {[%emt 0:02:51]} Rc6 {[%emt 0:00:22]} 43. Rd5 {[%emt 0:02:37]} Be8 {[%emt 0:00:16]} 44. Rd4 {[%emt 0:02:30]} Bf7 {[%emt 0:00:14]} 45. Nd5 {[%emt 0:04:22]} Bxd5 {[%emt 0:00:26]} 46. cxd5 {[%emt 0:01:19]} Rc3+ {[%emt 0:01:40]} 47. Rd3 {[%emt 0:04:16]} Rxc2 {[%emt 0:00:13]} 48. Kf4 {[%emt 0:01:52]} Kh5 {[%emt 0:08:09]} 49. Rd4 {[%emt 0:00:38]} Rh2 {[%emt 0:02:06]} 50. Kf5 {[%emt 0:00:16]} Re2 {[%emt 0:00:07]} 51. Re4 {[%emt 0:00:20]} Rxe4 {[%emt 0:02:35]} 52. Kxe4 {[%emt 0:00:02]} Kg4 {[%emt 0:00:08]} 53. h5 {[%emt 0:00:08]} Kg5 {[%emt 0:00:07]} 54. h6 {[%emt 0:00:12]} Kg6 {[%emt 0:00:09]} 55. h7 {[%emt 0:00:23]} Kxh7 {[%emt 0:00:09]} 56. Kf5 {[%emt 0:00:04]} Kg7 {[%emt 0:00:05]} 57. Ke6 {[%emt 0:00:07]} 1-0

[Event "FIN-ch 2019"]
[Site "Helsinki"]
[Date "2019.06.17"]
[Round "8.4"]
[White "Ronka, Erik"]
[Black "Agopov, Mikael"]
[Result "0-1"]
[ECO "B44"]
[WhiteElo "2270"]
[BlackElo "2432"]
[Annotator "NA"]
[PlyCount "82"]
[EventDate "2019.06.10"]
[EventType "swiss"]
[EventCountry "FIN"]
[SourceTitle "playchess.com"]
[Source "ChessBase"]
[SourceQuality "1"]
[TimeControl "40/5400+30:1800+30"]

1. e4 {[%emt 1:30:30]} c5 {[%emt 1:30:30]} 2. Nf3 {[%emt 0:00:30]} e6 {[%emt 0:00:30]} 3. d4 {[%emt 0:00:30]} cxd4 {[%emt 0:00:30]} 4. Nxd4 {[%emt 0:00:30]} Nc6 {[%emt 0:00:30]} 5. Nb5 {[%emt 0:00:30]} d6 {[%emt 0:00:30]} 6. Bf4 {[%emt 0:00:30]} e5 {[%emt 0:00:30]} 7. Be3 {[%emt 0:00:30]} Nf6 {[%emt 0:00:30]} 8. Bg5 {[%emt 0:00:30]} Be6 {[%emt 0:00:30]} 9. Nd2 {[%emt 0:00:30]} a6 {[%emt 0:00:30]} 10. Nc3 {[%emt 0:00:30]} Be7 {[%emt 0:00:30]} 11. Bxf6 {[%emt 0:00:30]} Bxf6 {[%emt 0:00:30]} 12. Nc4 {[%emt 0:00:30]} Nd4 {[%emt 0:00:30]} 13. Bd3 {[%emt 0:00:30]} Bg5 {[%emt 0:00:30]} 14. Nd5 {[%emt 0:00:30]} Bxd5 {[%emt 0:00:30]} 15. exd5 {[%emt 0:00:30]} O-O {[%emt 0:00:30]} 16. O-O {[%emt 0:00:30]} Nb5 {[%emt 0:00:30]} 17. a4 {[%emt 0:00:30]} Na7 {[%emt 0:00:30]} 18. g3 {[%emt 0:00:30]} Re8 {[%emt 0:00:30]} 19. Qg4 {[%emt 0:00:30]} Nc8 {[%emt 0:00:30]} 20. a5 {[%emt 0:00:30]} Bf6 {[%emt 0:00:30]} 21. Rae1 {[%emt 0:00:30]} g6 {[%emt 0:00:30]} 22. f4 {[%emt 0:00:30]} e4 {[%emt 0:00:30]} 23. Rxe4 {[%emt 0:00:30]} Rxe4 {[%emt 0:00:30]} 24. Bxe4 {[%emt 0:00:30]} b5 {[%emt 0:00:30]} 25. axb6 {[%emt 0:00:30]} Nxb6 {[%emt 0:00:30]} 26. Na5 {[%emt 0:00:30]} Na4 {[%emt 0:00:30]} 27. Nc6 {[%emt 0:00:30]} Qb6+ {[%emt 0:00:30]} 28. Kh1 {[%emt 0:00:30]} Nxb2 {[%emt 0:00:30]} 29. Qd7 {[%emt 0:00:30]} Nc4 {[%emt 0:00:30]} 30. Bg2 {[%emt 0:00:30]} Kg7 {[%emt 0:00:30]} 31. g4 {[%emt 0:00:30]} Ne3 {[%emt 0:00:30]} 32. Rg1 {[%emt 0:00:30]} Nxg2 {[%emt 0:00:30]} 33. Rxg2 {[%emt 0:00:30]} Qb1+ {[%emt 0:00:30]} 34. Rg1 {[%emt 0:00:30]} Qxc2 {[%emt 0:00:30]} 35. Qxd6 {[%emt 0:00:30]} Re8 {[%emt 0:00:30]} 36. f5 {[%emt 0:00:30]} Qe4+ {[%emt 0:00:30]} 37. Rg2 Qf3 {[%emt 0:00:30]} 38. h4 {[%emt 0:01:00]} Re1+ {[%emt 0:00:30]} 39. Kh2 {[%emt 0:00:30]} Be5+ {[%emt 0:00:30]} 40. Nxe5 {[%emt 0:00:30]} Qf4+ {[%emt 0:00:30]} 41. Rg3 {[%emt 0:30:30]} Qf2+ {[%emt 0:30:30]} 0-1

[Event "FIN-ch 2019"]
[Site "Helsinki"]
[Date "2019.06.17"]
[Round "8.5"]
[White "Norri, Joose"]
[Black "Lindholm, Jere"]
[Result "0-1"]
[ECO "D94"]
[WhiteElo "2271"]
[BlackElo "2145"]
[Annotator "NA"]
[PlyCount "121"]
[EventDate "2019.06.10"]
[EventType "swiss"]
[EventCountry "FIN"]
[SourceTitle "playchess.com"]
[Source "ChessBase"]
[SourceQuality "1"]
[TimeControl "40/5400+30:1800+30"]

1. d4 {[%emt 0:08:06]} Nf6 {[%emt 0:00:49]} 2. c4 {[%emt 0:01:45]} g6 {[%emt 0:00:40]} 3. Nc3 {[%emt 0:00:13]} d5 {[%emt 0:00:42]} 4. Nf3 {[%emt 0:03:01]} Bg7 {[%emt 0:00:07]} 5. e3 {[%emt 0:00:20]} O-O {[%emt 0:00:36]} 6. cxd5 {[%emt 0:00:06]} Nxd5 {[%emt 0:00:04]} 7. Bc4 {[%emt 0:00:07]} Nxc3 {[%emt 0:00:05]} 8. bxc3 {[%emt 0:00:08]} c5 {[%emt 0:00:31]} 9. O-O {[%emt 0:00:16]} b6 {[%emt 0:00:12]} 10. a4 {[%emt 0:00:47]} Nc6 {[%emt 0:00:26]} 11. Ba3 {[%emt 0:01:56]} Qc7 {[%emt 0:00:50]} 12. Be2 {[%emt 0:04:20]} Rd8 {[%emt 0:01:23]} 13. Qc2 {[%emt 0:00:34]} Na5 {[%emt 0:01:47]} 14. dxc5 {[%emt 0:06:28]} bxc5 {[%emt 0:00:20]} 15. Rab1 {[%emt 0:00:12]} Bd7 {[%emt 0:13:42]} 16. Rfd1 {[%emt 0:04:40]} Rab8 {[%emt 0:03:32]} 17. c4 {[%emt 0:08:00]} Nb7 {[%emt 1:12:44]} 18. Bb2 {[%emt 0:12:59]} Bxb2 {[%emt 0:00:00]} 19. Rxb2 {[%emt 0:06:29]} Nd6 {[%emt 0:00:00]} 20. Rdb1 {[%emt 0:05:00]} Rxb2 {[%emt 0:00:00]} 21. Qxb2 {[%emt 0:01:11]} Bxa4 {[%emt 0:00:00]} 22. Qa3 {[%emt 0:02:37]} Bd7 {[%emt 0:00:00]} 23. Ra1 {[%emt 0:02:27]} Be6 {[%emt 0:00:00]} 24. Ne5 {[%emt 0:04:59]} f6 {[%emt 0:00:00]} 25. Nd3 {[%emt 0:02:41]} Bxc4 {[%emt 0:00:00]} 26. Nxc5 {[%emt 0:00:20]} Bxe2 {[%emt 0:00:00]} 27. Ne6 {[%emt 0:00:07]} Qd7 {[%emt 0:00:00]} 28. Nxd8 {[%emt 0:00:36]} Qxd8 {[%emt 0:00:00]} 29. Qb2 {[%emt 0:01:57]} Bc4 {[%emt 0:00:00]} 30. Rxa7 {[%emt 0:00:07]} Nb5 {[%emt 0:00:00]} 31. Ra1 {[%emt 0:00:11]} Qd3 {[%emt 0:00:00]} 32. Rc1 {[%emt 0:01:28]} Nd6 {[%emt 0:00:00]} 33. h3 {[%emt 0:00:06]} Kf7 {[%emt 0:00:00]} 34. Qb4 {[%emt 0:00:06]} Bd5 {[%emt 0:00:00]} 35. Rc7 {[%emt 0:02:09]} Qe4 {[%emt 0:00:00]} 36. Qxe4 {[%emt 0:00:45]} Bxe4 {[%emt 0:00:00]} 37. f3 {[%emt 0:00:06]} Bd5 {[%emt 0:00:00]} 38. Kf2 {[%emt 0:00:27]} Ke6 {[%emt 0:00:09]} 39. Ra7 {[%emt 0:01:03]} f5 {[%emt 0:00:51]} 40. g4 {[%emt 0:00:46]} Kf6 {[%emt 0:01:37]} 41. Ra6 {[%emt 0:32:40]} h5 {[%emt 0:37:25]} 42. Ra5 {[%emt 0:04:07]} e6 {[%emt 0:00:00]} 43. gxh5 {[%emt 0:00:00]} gxh5 {[%emt 0:00:00]} 44. h4 {[%emt 0:00:00]} Nc4 {[%emt 0:00:00]} 45. Ra7 {[%emt 0:00:00]} Ne5 {[%emt 0:00:00]} 46. f4 {[%emt 0:00:00]} Ng4+ {[%emt 0:00:00]} 47. Ke2 {[%emt 0:00:00]} Bc4+ {[%emt 0:00:00]} 48. Kf3 {[%emt 0:00:00]} e5 {[%emt 0:00:00]} 49. fxe5+ {[%emt 0:00:00]} Kxe5 {[%emt 0:00:00]} 50. Rh7 {[%emt 0:00:00]} Bd5+ {[%emt 0:00:00]} 51. Kg3 {[%emt 0:00:00]} Nxe3 {[%emt 0:00:00]} 52. Rxh5 {[%emt 0:00:00]} Ke4 {[%emt 0:00:00]} 53. Rh8 {[%emt 0:00:00]} f4+ {[%emt 0:00:00]} 54. Kf2 {[%emt 0:00:00]} Ng4+ {[%emt 0:00:00]} 55. Ke1 {[%emt 0:00:00]} f3 {[%emt 0:00:00]} 56. Rf8 {[%emt 0:00:00]} Ke3 {[%emt 0:00:00]} 57. h5 {[%emt 0:00:00]} f2+ {[%emt 0:00:00]} 58. Kf1 {[%emt 0:00:00]} Bf3 {[%emt 0:00:00]} 59. Re8+ {[%emt 0:00:00]} Kf4 {[%emt 0:00:00]} 60. h6 {[%emt 0:00:00]} Kg3 {[%emt 0:00:00]} 61. Rf8 {[%emt 0:24:07]} 0-1

[Event "FIN-ch 2019"]
[Site "Helsinki"]
[Date "2019.06.17"]
[Round "8.6"]
[White "Ristoja, Samu"]
[Black "Tiitta, Sauli"]
[Result "1-0"]
[ECO "A43"]
[WhiteElo "2197"]
[BlackElo "2214"]
[Annotator "NA"]
[PlyCount "67"]
[EventDate "2019.06.10"]
[EventType "swiss"]
[EventCountry "FIN"]
[SourceTitle "playchess.com"]
[Source "ChessBase"]
[SourceQuality "1"]
[TimeControl "40/5400+30:1800+30"]

1. d4 {[%emt 1:30:30]} c5 {[%emt 1:30:30]} 2. d5 {[%emt 0:00:30]} Nf6 {[%emt 0:00:30]} 3. Nc3 {[%emt 0:00:30]} d6 {[%emt 0:00:30]} 4. e4 {[%emt 0:00:30]} g6 {[%emt 0:00:30]} 5. Nf3 {[%emt 0:00:30]} Bg7 {[%emt 0:00:30]} 6. Be2 {[%emt 0:00:30]} O-O {[%emt 0:00:30]} 7. O-O {[%emt 0:00:30]} b6 {[%emt 0:00:30]} 8. Re1 {[%emt 0:00:30]} Na6 {[%emt 0:00:30]} 9. h3 {[%emt 0:00:30]} Nc7 {[%emt 0:00:30]} 10. a4 {[%emt 0:00:30]} e6 {[%emt 0:00:30]} 11. dxe6 {[%emt 0:00:30]} fxe6 {[%emt 0:00:30]} 12. e5 {[%emt 0:00:30]} Nfd5 {[%emt 0:00:30]} 13. Bg5 {[%emt 0:00:30]} Qd7 {[%emt 0:00:30]} 14. Nxd5 {[%emt 0:00:30]} exd5 {[%emt 0:00:30]} 15. Bb5 {[%emt 0:00:30]} Nxb5 {[%emt 0:00:30]} 16. Qxd5+ {[%emt 0:00:30]} Qf7 {[%emt 0:00:30]} 17. Qxa8 {[%emt 0:00:30]} Nd4 {[%emt 0:00:30]} 18. Nxd4 {[%emt 0:00:30]} Bb7 {[%emt 0:00:30]} 19. Qxf8+ {[%emt 0:00:30]} Qxf8 {[%emt 0:00:30]} 20. Ne6 {[%emt 0:00:30]} Qf5 {[%emt 0:00:30]} 21. exd6 {[%emt 0:00:30]} Qd5 {[%emt 0:00:30]} 22. Nf4 {[%emt 0:00:30]} Qxd6 {[%emt 0:00:30]} 23. Rad1 {[%emt 0:00:30]} Bd4 {[%emt 0:00:30]} 24. c3 {[%emt 0:00:30]} Bc6 {[%emt 0:00:30]} 25. cxd4 {[%emt 0:00:30]} cxd4 {[%emt 0:00:30]} 26. Re7 {[%emt 0:00:30]} h6 {[%emt 0:00:30]} 27. Re6 {[%emt 0:00:30]} Qc5 {[%emt 0:00:30]} 28. Rxg6+ {[%emt 0:00:30]} Kf7 {[%emt 0:00:30]} 29. Rg7+ {[%emt 0:00:30]} Kxg7 {[%emt 0:00:30]} 30. Ne6+ {[%emt 0:00:30]} Kg6 {[%emt 0:00:30]} 31. Nxc5 {[%emt 0:00:30]} bxc5 {[%emt 0:00:30]} 32. Be7 {[%emt 0:00:30]} Bxa4 {[%emt 0:00:30]} 33. Ra1 {[%emt 0:00:30]} Bc2 {[%emt 0:00:30]} 34. Bxc5 {[%emt 0:00:30]} 1-0

[Event "FIN-ch 2019"]
[Site "Helsinki"]
[Date "2019.06.17"]
[Round "8.7"]
[White "Jarvenpaa, Jari"]
[Black "Luukkonen, Tommi"]
[Result "1-0"]
[ECO "D02"]
[WhiteElo "2204"]
[BlackElo "2330"]
[Annotator "NA"]
[PlyCount "79"]
[EventDate "2019.06.10"]
[EventType "swiss"]
[EventCountry "FIN"]
[SourceTitle "playchess.com"]
[Source "ChessBase"]
[SourceQuality "1"]
[TimeControl "40/5400+30:1800+30"]

1. d4 {[%emt 0:00:00]} d5 {[%emt 0:00:54]} 2. Nf3 {[%emt 0:00:18]} c5 {[%emt 0:00:21]} 3. dxc5 {[%emt 0:02:05]} Na6 {[%emt 0:02:19]} 4. e4 {[%emt 0:02:03]} e6 {[%emt 0:02:07]} 5. exd5 {[%emt 0:07:34]} Bxc5 {[%emt 0:05:19]} 6. Bb5+ {[%emt 0:04:46]} Bd7 {[%emt 0:05:18]} 7. Bc4 {[%emt 0:12:24]} Qb6 {[%emt 0:00:35]} 8. O-O {[%emt 0:02:33]} O-O-O {[%emt 0:00:10]} 9. dxe6 {[%emt 0:04:36]} Bxe6 {[%emt 0:06:54]} 10. Bxe6+ {[%emt 0:07:45]} Qxe6 {[%emt 0:01:32]} 11. Qe1 {[%emt 0:00:22]} Nf6 {[%emt 0:06:38]} 12. Qxe6+ {[%emt 0:05:19]} fxe6 {[%emt 0:00:04]} 13. Bg5 {[%emt 0:02:07]} h6 {[%emt 0:04:47]} 14. Bxf6 {[%emt 0:01:08]} gxf6 {[%emt 0:00:03]} 15. Nbd2 {[%emt 0:01:32]} Nc7 {[%emt 0:03:10]} 16. Rfe1 {[%emt 0:01:45]} Rd7 {[%emt 0:03:41]} 17. Nb3 {[%emt 0:00:57]} Bb4 {[%emt 0:06:15]} 18. c3 {[%emt 0:01:00]} Be7 {[%emt 0:02:21]} 19. Nfd4 {[%emt 0:02:21]} e5 {[%emt 0:00:55]} 20. Nf5 {[%emt 0:00:12]} Ne6 {[%emt 0:01:40]} 21. g3 {[%emt 0:02:14]} Ng5 {[%emt 0:01:11]} 22. Kg2 {[%emt 0:01:46]} Bd8 {[%emt 0:02:03]} 23. Rad1 {[%emt 0:01:06]} Bb6 {[%emt 0:01:31]} 24. Rxd7 {[%emt 0:04:00]} Kxd7 {[%emt 0:00:02]} 25. h4 {[%emt 0:03:02]} Nf7 {[%emt 0:00:12]} 26. Ne3 {[%emt 0:05:45]} Nd6 {[%emt 0:02:59]} 27. Nd5 {[%emt 0:01:19]} Bd8 {[%emt 0:01:42]} 28. Rd1 {[%emt 0:01:09]} a5 {[%emt 0:05:09]} 29. Nc5+ {[%emt 0:09:03]} Kc6 {[%emt 0:02:43]} 30. Ne6 {[%emt 0:01:21]} f5 {[%emt 0:01:35]} 31. b3 {[%emt 0:02:58]} b5 {[%emt 0:02:08]} 32. c4 {[%emt 0:04:13]} bxc4 {[%emt 0:01:25]} 33. bxc4 {[%emt 0:00:18]} Nf7 {[%emt 0:07:38]} 34. Nxd8+ {[%emt 0:04:35]} Nxd8 {[%emt 0:03:03]} 35. Ne7+ {[%emt 0:00:26]} Kc5 {[%emt 0:00:08]} 36. Rd5+ {[%emt 0:01:17]} Kxc4 {[%emt 0:00:08]} 37. Rxa5 {[%emt 0:00:12]} Nf7 {[%emt 0:05:25]} 38. Nxf5 {[%emt 0:00:36]} Rd8 {[%emt 0:00:30]} 39. Ra7 {[%emt 0:00:47]} Nd6 {[%emt 0:00:39]} 40. Nxh6 {[%emt 0:02:03]} 1-0

[Event "FIN-ch 2019"]
[Site "Helsinki"]
[Date "2019.06.18"]
[Round "9.1"]
[White "Lahdelma, Henri"]
[Black "Keinanen, Toivo"]
[Result "1/2-1/2"]
[ECO "D31"]
[WhiteElo "2188"]
[BlackElo "2370"]
[Annotator "NA"]
[PlyCount "40"]
[EventDate "2019.06.10"]
[EventType "swiss"]
[EventCountry "FIN"]
[SourceTitle "playchess.com"]
[Source "ChessBase"]
[SourceQuality "1"]
[TimeControl "40/5400+30:1800+30"]

1. d4 {[%emt 0:00:00]} d5 {[%emt 0:00:00]} 2. c4 {[%emt 0:00:00]} e6 {[%emt 0:00:00]} 3. Nc3 {[%emt 0:00:00]} Be7 {[%emt 0:00:00]} 4. cxd5 {[%emt 0:00:00]} exd5 {[%emt 0:00:05]} 5. Bf4 {[%emt 0:00:57]} c6 {[%emt 0:00:05]} 6. e3 {[%emt 0:00:09]} Bf5 {[%emt 0:02:23]} 7. Nge2 {[%emt 0:00:22]} Nd7 {[%emt 0:01:37]} 8. Ng3 {[%emt 0:00:10]} Bg6 {[%emt 0:00:01]} 9. Be2 {[%emt 0:00:31]} Ngf6 {[%emt 0:01:10]} 10. h4 {[%emt 0:00:11]} h5 {[%emt 0:00:03]} 11. Bf3 {[%emt 0:00:55]} Qb6 {[%emt 0:01:35]} 12. Qe2 {[%emt 0:00:50]} Kf8 {[%emt 0:04:41]} 13. Rc1 {[%emt 0:03:26]} Re8 {[%emt 0:02:46]} 14. O-O {[%emt 0:02:48]} Qd8 {[%emt 0:02:16]} 15. Rfe1 {[%emt 0:00:06]} Ng4 {[%emt 0:06:47]} 16. e4 {[%emt 0:00:30]} Bxh4 {[%emt 0:03:19]} 17. Qd2 {[%emt 0:05:12]} Bxg3 {[%emt 0:10:16]} 18. Bxg3 {[%emt 0:00:09]} dxe4 {[%emt 0:03:36]} 19. Bxe4 {[%emt 0:06:38]} Kg8 {[%emt 0:13:35]} 20. Bxg6 {[%emt 0:01:58]} fxg6 {[%emt 0:00:03]} 1/2-1/2

[Event "FIN-ch 2019"]
[Site "Helsinki"]
[Date "2019.06.18"]
[Round "9.2"]
[White "Koykka, Pekka"]
[Black "Hokkanen, Petri"]
[Result "1-0"]
[ECO "B35"]
[WhiteElo "2399"]
[BlackElo "2199"]
[Annotator "NA"]
[PlyCount "40"]
[EventDate "2019.06.10"]
[EventType "swiss"]
[EventCountry "FIN"]
[SourceTitle "playchess.com"]
[Source "ChessBase"]
[SourceQuality "1"]
[TimeControl "40/5400+30:1800+30"]

1. e4 {[%emt 0:03:56]} c5 {[%emt 0:00:00]} 2. Nf3 {[%emt 0:00:12]} Nc6 {[%emt 0:00:00]} 3. d4 {[%emt 0:00:28]} cxd4 {[%emt 0:00:03]} 4. Nxd4 {[%emt 0:00:03]} g6 {[%emt 0:00:10]} 5. Nc3 {[%emt 0:00:17]} Bg7 {[%emt 0:00:30]} 6. Be3 {[%emt 0:00:09]} Nf6 {[%emt 0:00:06]} 7. Bc4 {[%emt 0:00:17]} O-O {[%emt 0:00:08]} 8. Bb3 {[%emt 0:00:14]} Qa5 {[%emt 0:01:50]} 9. O-O {[%emt 0:01:03]} d6 {[%emt 0:02:35]} 10. h3 {[%emt 0:00:18]} Bd7 {[%emt 0:03:52]} 11. Re1 {[%emt 0:00:10]} Qh5 {[%emt 0:08:27]} 12. Nxc6 {[%emt 0:10:35]} bxc6 {[%emt 0:07:51]} 13. e5 {[%emt 0:13:17]} Qxe5 {[%emt 0:01:57]} 14. Bd4 {[%emt 0:17:36]} Qg5 {[%emt 0:05:38]} 15. Rxe7 {[%emt 0:00:58]} Bf5 {[%emt 0:11:13]} 16. Be3 {[%emt 0:02:00]} Qh4 {[%emt 0:00:22]} 17. Qxd6 {[%emt 0:01:18]} Nh5 {[%emt 0:08:27]} 18. Rxa7 {[%emt 0:17:05]} Rxa7 {[%emt 0:11:45]} 19. Bxa7 {[%emt 0:02:41]} Re8 {[%emt 0:04:05]} 20. Qxc6 {[%emt 0:01:59]} Rd8 {[%emt 0:31:01]} 1-0

[Event "FIN-ch 2019"]
[Site "Helsinki"]
[Date "2019.06.18"]
[Round "9.3"]
[White "Ristoja, Samu"]
[Black "Nyysti, Sampsa"]
[Result "0-1"]
[ECO "C47"]
[WhiteElo "2197"]
[BlackElo "2320"]
[Annotator "NA"]
[PlyCount "116"]
[EventDate "2019.06.10"]
[EventType "swiss"]
[EventCountry "FIN"]
[SourceTitle "playchess.com"]
[Source "ChessBase"]
[SourceQuality "1"]
[TimeControl "40/5400+30:1800+30"]

1. e4 {[%emt 0:00:00]} e5 {[%emt 0:02:54]} 2. Nf3 {[%emt 0:00:00]} Nc6 {[%emt 0:00:08]} 3. d4 {[%emt 0:00:00]} exd4 {[%emt 0:00:07]} 4. Nxd4 {[%emt 0:00:00]} Nf6 {[%emt 0:00:11]} 5. Nc3 {[%emt 0:00:07]} Bb4 {[%emt 0:00:20]} 6. Nxc6 {[%emt 0:00:08]} bxc6 {[%emt 0:00:05]} 7. Bd3 {[%emt 0:00:09]} d5 {[%emt 0:00:12]} 8. exd5 {[%emt 0:00:09]} O-O {[%emt 0:00:19]} 9. O-O {[%emt 0:00:10]} cxd5 {[%emt 0:00:16]} 10. h3 {[%emt 0:00:41]} Re8 {[%emt 0:03:47]} 11. Qf3 {[%emt 0:00:46]} h6 {[%emt 0:03:06]} 12. Bf4 {[%emt 0:01:02]} Be6 {[%emt 0:04:19]} 13. a3 {[%emt 0:04:12]} Bd6 {[%emt 0:03:00]} 14. Nb5 {[%emt 0:03:46]} Bxf4 {[%emt 0:00:15]} 15. Qxf4 {[%emt 0:00:06]} Re7 {[%emt 0:01:59]} 16. b4 {[%emt 0:05:42]} c6 {[%emt 0:06:10]} 17. Nd4 {[%emt 0:01:58]} Rc8 {[%emt 0:04:52]} 18. Nb3 {[%emt 0:14:11]} Qc7 {[%emt 0:03:57]} 19. Qxc7 {[%emt 0:10:54]} Rexc7 {[%emt 0:13:56]} 20. f4 {[%emt 0:05:40]} Rd8 {[%emt 0:05:52]} 21. Nc5 {[%emt 0:05:46]} Bc8 {[%emt 0:01:37]} 22. Rae1 {[%emt 0:05:42]} Kf8 {[%emt 0:00:38]} 23. f5 {[%emt 0:13:15]} Nd7 {[%emt 0:04:11]} 24. Nxd7+ {[%emt 0:07:01]} Rdxd7 {[%emt 0:09:47]} 25. Kf2 {[%emt 0:01:34]} c5 {[%emt 0:01:23]} 26. bxc5 {[%emt 0:00:18]} Rxc5 {[%emt 0:00:23]} 27. Rb1 {[%emt 0:00:49]} Ke7 {[%emt 0:01:00]} 28. Rfe1+ {[%emt 0:01:36]} Kf6 {[%emt 0:00:28]} 29. g4 {[%emt 0:02:52]} Rdc7 {[%emt 0:02:21]} 30. Rb4 {[%emt 0:02:18]} Ra5 {[%emt 0:00:30]} 31. Rb3 {[%emt 0:01:53]} h5 {[%emt 0:01:29]} 32. Kg3 {[%emt 0:01:06]} hxg4 {[%emt 0:07:58]} 33. hxg4 {[%emt 0:00:10]} Kg5 {[%emt 0:05:36]} 34. Re5 {[%emt 0:03:35]} Ra4 {[%emt 0:01:44]} 35. Rb4 {[%emt 0:01:41]} Rxa3 {[%emt 0:00:21]} 36. f6+ {[%emt 0:02:20]} Kxf6 {[%emt 0:00:03]} 37. Kf4 {[%emt 0:00:11]} Bxg4 {[%emt 0:01:23]} 38. Rxd5 {[%emt 0:00:24]} Be6 {[%emt 0:01:44]} 39. Rdb5 {[%emt 0:00:20]} a5 {[%emt 0:04:09]} 40. Rb1 {[%emt 0:00:53]} Ra7 {[%emt 0:01:12]} 41. Ke4 {[%emt 0:07:10]} Ra4+ {[%emt 0:00:44]} 42. Ke3 {[%emt 0:00:40]} Rh4 {[%emt 0:00:23]} 43. Rf1+ {[%emt 0:02:15]} Ke7 {[%emt 0:00:07]} 44. Rg1 {[%emt 0:01:32]} g6 {[%emt 0:00:10]} 45. Kd2 {[%emt 0:00:54]} a4 {[%emt 0:00:31]} 46. Kc1 {[%emt 0:01:04]} a3 {[%emt 0:03:29]} 47. Kb1 {[%emt 0:01:37]} Raa4 {[%emt 0:00:33]} 48. Rb7+ {[%emt 0:01:27]} Kf6 {[%emt 0:00:12]} 49. Ka1 {[%emt 0:00:22]} Rag4 {[%emt 0:01:17]} 50. Rf1+ {[%emt 0:00:45]} Rf4 {[%emt 0:00:06]} 51. Rg1 {[%emt 0:00:32]} Rhg4 {[%emt 0:01:00]} 52. Re1 {[%emt 0:00:15]} Rg2 {[%emt 0:01:39]} 53. Ra7 {[%emt 0:01:08]} a2 {[%emt 0:00:17]} 54. c4 {[%emt 0:00:16]} Rd2 {[%emt 0:00:52]} 55. Be2 {[%emt 0:01:04]} Re4 {[%emt 0:01:02]} 56. Rf1+ {[%emt 0:00:09]} Kg7 {[%emt 0:00:32]} 57. Bd1 {[%emt 0:00:33]} Bxc4 {[%emt 0:00:30]} 58. Bb3 {[%emt 0:00:32]} Bxf1 {[%emt 0:02:47]} 0-1